fUST/lending_fUST_20241113
["ID","MTS","AMOUNT","RATE_DAILY","PERIOD"]
[342138128,1731499875548,-500.0,0.00023085,2]
[342138129,1731499875557,-626.41,0.00023085,2]
[342138130,1731499875566,-564.51,0.00023085,2]
[342138131,1731499875576,-500.0,0.00023085,2]
[342138132,1731499875585,-189.29257425,0.00023085,2]
[342138133,1731499875595,-500.0,0.00023085,2]
[342138134,1731499875604,-500.0,0.00023085,2]
[342138135,1731499875612,-546.36,0.00023085,2]
[342138136,1731499875622,-500.0,0.00023085,2]
[342138137,1731499875631,-537.55,0.00023085,2]
[342138138,1731499875640,-500.0,0.00023085,2]
[342138139,1731499875651,-500.0,0.00023085,2]
[342138140,1731499875660,-500.0,0.00023085,2]
[342138141,1731499875669,-500.0,0.00023085,2]
[342138142,1731499875679,-877.96,0.00023085,2]
[342138143,1731499875688,-541.14,0.00023085,2]
[342138144,1731499875697,-500.0,0.00023085,2]
[342138145,1731499875706,-500.0,0.00023086,2]
[342138146,1731499875715,-2139.54,0.00023086,2]
[342138147,1731499875724,-1045.64,0.00023086,2]
[342138148,1731499875736,-500.0,0.00023086,2]
[342138149,1731499875745,-500.0,0.00023086,2]
[342138150,1731499875754,-500.0,0.00023168,2]
[342138151,1731499875763,-500.0,0.00023168,2]
[342138152,1731499875772,-500.0,0.00023168,2]
[342138153,1731499875781,-500.0,0.00023168,2]
[342138154,1731499875790,-500.0,0.00023168,2]
[342138155,1731499875800,-500.0,0.00023168,2]
[342138156,1731499875809,-500.0,0.00023168,2]
[342138157,1731499875819,-549.79,0.00023168,2]
[342138158,1731499875828,-500.0,0.00023168,2]
[342138159,1731499875842,-500.0,0.00023168,2]
[342138160,1731499875851,-500.0,0.00023168,2]
[342138161,1731499875862,-500.0,0.00023168,2]
[342138162,1731499875871,-500.0,0.00023168,2]
[342138163,1731499875880,-500.0,0.00023168,2]
[342138164,1731499875890,-296.2024844,0.00023168,2]
[342138165,1731499875899,-500.0,0.00023168,2]
[342138166,1731499875908,-500.0,0.00023168,2]
[342138167,1731499875917,-500.0,0.00023168,2]
[342138168,1731499875926,-500.0,0.00023168,2]
[342138169,1731499875936,-500.0,0.00023168,2]
[342138170,1731499875946,-340.9363707,0.00023168,2]
[342138171,1731499875956,-500.0,0.00023168,2]
[342138172,1731499875966,-500.0,0.00023168,2]
[342138173,1731499875978,-500.0,0.00023168,2]
[342138174,1731499875989,-518.80324458,0.00023168,2]
[342138175,1731499875999,-500.0,0.00023168,2]
[342138176,1731499876009,-500.0,0.00023168,2]
[342138177,1731499876018,-545.5,0.00023168,2]
[342138178,1731499876027,-500.0,0.00023168,2]
[342138179,1731499876037,-500.0,0.00023168,2]
[342138180,1731499876046,-500.0,0.00023168,2]
[342138181,1731499876055,-879.56,0.00023168,2]
[342138182,1731499876065,-500.0,0.00023168,2]
[342138183,1731499876074,-285.4551358,0.00023168,2]
[342138184,1731499876084,-500.0,0.00023168,2]
[342138185,1731499876094,-458.54810671,0.00023168,2]
[342138186,1731499876103,-500.0,0.00023168,2]
[342138187,1731499876112,-505.37778165,0.00023168,2]
[342138188,1731499876122,-500.0,0.00023186,2]
[342138189,1731499876132,-500.0,0.00023186,2]
[342138190,1731499876141,-500.0,0.00023186,2]
[342138191,1731499876151,-500.0,0.00023186,2]
[342138192,1731499876270,-933.01,0.00023186,2]
[342138193,1731499876280,-500.0,0.00023186,2]
[342138194,1731499876289,-500.0,0.00023186,2]
[342138195,1731499876298,-504.41,0.00023186,2]
[342138196,1731499876308,-607.97,0.00023186,2]
[342138197,1731499876317,-1115.11,0.00023186,2]
[342138198,1731499876326,-864.63,0.00023186,2]
[342138199,1731499876335,-500.0,0.00023186,2]
[342138200,1731499876345,-503.47983455,0.00023186,2]
[342138201,1731499876354,-500.0,0.00023186,2]
[342138202,1731499876363,-500.0,0.00023186,2]
[342138203,1731499876373,-500.0,0.00023186,2]
[342138204,1731499876382,-500.0,0.00023186,2]
[342138205,1731499876394,-500.0,0.00023186,2]
[342138206,1731499876404,-500.0,0.00023186,2]
[342138207,1731499876413,-500.0,0.00023186,2]
[342138208,1731499876423,-500.0,0.00023186,2]
[342138209,1731499876433,-173.18,0.00023186,2]
[342138210,1731499876443,-500.0,0.00023215,2]
[342138211,1731499876452,-500.0,0.00023215,2]
[342138212,1731499876463,-500.0,0.00023215,2]
[342138213,1731499876473,-500.0,0.00023215,2]
[342138214,1731499876482,-500.0,0.00023215,2]
[342138215,1731499876494,-500.0,0.00023215,2]
[342138216,1731499876506,-653.10145976,0.00023287,2]
[342138217,1731499876515,-500.0,0.00023291,2]
[342138218,1731499876524,-521.74107994,0.00023291,2]
[342138219,1731499876533,-664.1,0.00023291,2]
[342138220,1731499876543,-500.0,0.00023291,2]
[342138221,1731499876553,-500.0,0.00023291,2]
[342138222,1731499876561,-500.0,0.00023291,2]
[342138223,1731499876570,-269.40828925,0.00023291,2]
[342138224,1731499876580,-500.0,0.00023291,2]
[342138225,1731499876589,-500.0,0.00023291,2]
[342138226,1731499876599,-500.0,0.00023291,2]
[342138227,1731499876608,-500.0,0.00023291,2]
[342138228,1731499876618,-500.0,0.00023291,2]
[342138229,1731499876628,-500.0,0.00023291,2]
[342138230,1731499876638,-500.0,0.00023291,2]
[342138231,1731499876647,-500.0,0.00023291,2]
[342138232,1731499876656,-615.55884516,0.00023291,2]
[342138233,1731499876666,-500.0,0.00023291,2]
[342138234,1731499876675,-519.43,0.00023291,2]
[342138235,1731499876685,-500.0,0.00023291,2]
[342138236,1731499876694,-500.0,0.00023291,2]
[342138237,1731499876704,-500.0,0.00023291,2]
[342138238,1731499876714,-500.0,0.00023291,2]
[342138239,1731499876724,-500.0,0.00023291,2]
[342138240,1731499876734,-500.0,0.00023291,2]
[342138241,1731499876745,-500.0,0.00023291,2]
[342138242,1731499876754,-500.0,0.00023291,2]
[342138243,1731499876764,-1000.91019022,0.00023322,2]
[342138244,1731499876772,-225.21973324,0.00023322,2]
[342138245,1731499876782,-500.63514094,0.00023322,2]
[342138246,1731499876791,-1615.38407278,0.00023322,2]
[342138247,1731499876800,-500.0,0.00023343,2]
[342138248,1731499876809,-1300.83,0.00023343,2]
[342138249,1731499876819,-500.0,0.00023343,2]
[342138250,1731499876828,-500.0,0.00023343,2]
[342138251,1731499876837,-180.26471933,0.00023343,2]
[342138252,1731499876847,-322.53100574,0.00023343,2]
[342138253,1731499876856,-261.43829145,0.00023343,2]
[342138254,1731499876865,-768.698674,0.00023354,2]
[342138255,1731499876874,-951.449843,0.00023354,2]
[342138256,1731499876884,-172.228931,0.00023354,2]
[342138257,1731499876893,-950.874793,0.00023354,2]
[342138258,1731499876903,-865.784452,0.00023354,2]
[342138259,1731499876912,-182.035834,0.00023354,2]
[342138260,1731499876922,-301.927289,0.00023354,2]
[342138261,1731499876931,-784.96,0.00023358,2]
[342138262,1731499876940,-500.0,0.00023358,2]
[342138263,1731499876950,-6930.32,0.00023358,2]
[342138264,1731499876959,-1605.83,0.00023358,2]
[342138265,1731499876969,-1070.28,0.00023358,2]
[342138266,1731499876978,-1111.56,0.00023358,2]
[342138267,1731499876990,-1195.06,0.00023358,2]
[342138268,1731499876998,-500.0,0.00023359,2]
[342138269,1731499877007,-500.0,0.00023359,2]
[342138270,1731499877016,-514.25,0.00023359,2]
[342138271,1731499877025,-500.0,0.00023359,2]
[342138272,1731499877034,-500.0,0.00023359,2]
[342138273,1731499877043,-500.0,0.00023359,2]
[342138274,1731499877052,-500.0,0.00023359,2]
[342138275,1731499877061,-500.0,0.00023359,2]
[342138276,1731499877070,-523.42,0.00023359,2]
[342138277,1731499877080,-700.85,0.00023359,2]
[342138278,1731499877090,-500.0,0.00023359,2]
[342138279,1731499877099,-500.0,0.00023359,2]
[342138280,1731499877109,-500.0,0.00023359,2]
[342138281,1731499877119,-374.6872843,0.00023359,2]
[342138282,1731499877128,-500.0,0.00023359,2]
[342138283,1731499877137,-610.5569108,0.00023359,2]
[342138284,1731499877147,-500.0,0.00023359,2]
[342138285,1731499877158,-500.0,0.00023359,2]
[342138286,1731499877167,-2334.98,0.00023359,2]
[342138287,1731499877177,-500.0,0.00023359,2]
[342138288,1731499877186,-565.83,0.00023359,2]
[342138289,1731499877195,-505.35441379,0.00023359,2]
[342138290,1731499877205,-590.92,0.00023359,2]
[342138291,1731499877214,-783.61,0.00023359,2]
[342138292,1731499877224,-500.0,0.00023359,2]
[342138293,1731499877233,-500.0,0.00023359,2]
[342138294,1731499877242,-3561.14,0.00023359,2]
[342138295,1731499877252,-500.0,0.00023359,2]
[342138296,1731499877260,-500.0,0.00023359,2]
[342138297,1731499877270,-1692.17,0.00023359,2]
[342138298,1731499877279,-500.0,0.00023359,2]
[342138299,1731499877289,-500.0,0.00023359,2]
[342138300,1731499877298,-438.20379113,0.00023359,2]
[342138301,1731499877309,-1603.1,0.00023359,2]
[342138302,1731499877318,-500.0,0.00023359,2]
[342138303,1731499877327,-626.41,0.00023359,2]
[342138304,1731499877337,-564.51,0.00023359,2]
[342138305,1731499877346,-500.0,0.00023359,2]
[342138306,1731499877355,-500.0,0.00023359,2]
[342138307,1731499877365,-500.0,0.00023359,2]
[342138308,1731499877374,-546.36,0.00023359,2]
[342138309,1731499877383,-500.0,0.00023359,2]
[342138310,1731499877396,-537.55,0.00023359,2]
[342138311,1731499877406,-500.0,0.00023359,2]
[342138312,1731499877415,-309.97589971,0.00023359,2]
[342138313,1731499877425,-500.0,0.00023359,2]
[342138314,1731499877434,-500.0,0.00023359,2]
[342138315,1731499877444,-877.96,0.00023359,2]
[342138316,1731499877453,-541.14,0.00023359,2]
[342138317,1731499877463,-500.0,0.00023359,2]
[342138318,1731499877474,-500.0,0.0002336,2]
[342138319,1731499877487,-2139.54,0.0002336,2]
[342138320,1731499877497,-1045.64,0.0002336,2]
[342138321,1731499877506,-500.0,0.0002336,2]
[342138322,1731499877515,-500.0,0.0002336,2]
[342138323,1731499877524,-500.0,0.00023442,2]
[342138324,1731499877533,-463.67260913,0.00023442,2]
[342138325,1731499877542,-403.66247829,0.00023442,2]
[342138326,1731499877552,-500.0,0.00023442,2]
[342138327,1731499877561,-589.35129204,0.00023442,2]
[342138328,1731499877571,-500.0,0.00023442,2]
[342138329,1731499877579,-500.0,0.00023442,2]
[342138330,1731499877588,-500.0,0.00023442,2]
[342138331,1731499877597,-500.0,0.00023442,2]
[342138332,1731499877607,-380.75163778,0.00023442,2]
[342138333,1731499877616,-500.0,0.00023442,2]
[342138334,1731499877625,-500.0,0.00023442,2]
[342138335,1731499877635,-500.0,0.00023442,2]
[342138336,1731499877644,-500.0,0.00023442,2]
[342138337,1731499877653,-500.0,0.00023442,2]
[342138338,1731499877663,-506.04740335,0.00023442,2]
[342138339,1731499877672,-500.0,0.00023442,2]
[342138340,1731499877682,-500.0,0.00023442,2]
[342138341,1731499877691,-500.0,0.00023442,2]
[342138342,1731499877700,-500.0,0.00023442,2]
[342138343,1731499877709,-500.0,0.00023442,2]
[342138344,1731499877718,-500.0,0.00023442,2]
[342138345,1731499877728,-500.0,0.00023442,2]
[342138346,1731499877741,-545.5,0.00023442,2]
[342138347,1731499877753,-500.0,0.00023442,2]
[342138348,1731499877763,-500.0,0.00023442,2]
[342138349,1731499877772,-293.35436973,0.00023442,2]
[342138350,1731499877782,-879.56,0.00023442,2]
[342138351,1731499877791,-500.0,0.00023442,2]
[342138352,1731499877800,-500.0,0.00023442,2]
[342138353,1731499877810,-500.0,0.00023442,2]
[342138354,1731499877821,-500.0,0.0002346,2]
[342138355,1731499877830,-500.0,0.0002346,2]
[342138356,1731499877839,-384.52958366,0.0002346,2]
[342138357,1731499877848,-500.0,0.0002346,2]
[342138358,1731499877857,-933.01,0.0002346,2]
[342138359,1731499877866,-500.0,0.0002346,2]
[342138360,1731499877876,-500.0,0.0002346,2]
[342138361,1731499877885,-504.41,0.0002346,2]
[342138362,1731499877894,-607.97,0.0002346,2]
[342138363,1731499877903,-1115.11,0.0002346,2]
[342138364,1731499877913,-864.63,0.0002346,2]
[342138365,1731499877922,-500.0,0.0002346,2]
[342138366,1731499877931,-500.0,0.0002346,2]
[342138367,1731499877940,-500.0,0.0002346,2]
[342138368,1731499877950,-507.59544682,0.0002346,2]
[342138369,1731499877959,-500.0,0.0002346,2]
[342138370,1731499877968,-500.0,0.0002346,2]
[342138371,1731499877978,-500.0,0.0002346,2]
[342138372,1731499877991,-500.0,0.0002346,2]
[342138373,1731499878001,-500.0,0.0002346,2]
[342138374,1731499878010,-500.0,0.00023489,2]
[342138375,1731499878019,-500.0,0.00023489,2]
[342138376,1731499878029,-500.0,0.00023489,2]
[342138377,1731499878039,-500.0,0.00023489,2]
[342138378,1731499878048,-500.0,0.00023489,2]
[342138379,1731499878058,-470.60498186,0.00023489,2]
[342138380,1731499878071,-500.0,0.00023565,2]
[342138381,1731499878081,-664.1,0.00023565,2]
[342138382,1731499878091,-500.0,0.00023565,2]
[342138383,1731499878100,-500.0,0.00023565,2]
[342138384,1731499878110,-500.0,0.00023565,2]
[342138385,1731499878119,-500.0,0.00023565,2]
[342138386,1731499878129,-500.0,0.00023565,2]
[342138387,1731499878139,-500.0,0.00023565,2]
[342138388,1731499878149,-500.0,0.00023565,2]
[342138389,1731499878158,-500.0,0.00023565,2]
[342138390,1731499878168,-500.0,0.00023565,2]
[342138391,1731499878179,-500.0,0.00023565,2]
[342138392,1731499878189,-500.0,0.00023565,2]
[342138393,1731499878198,-500.0,0.00023565,2]
[342138394,1731499878208,-519.43,0.00023565,2]
[342138395,1731499878218,-500.0,0.00023565,2]
[342138396,1731499878227,-500.0,0.00023565,2]
[342138397,1731499878239,-500.0,0.00023565,2]
[342138398,1731499878249,-500.0,0.00023565,2]
[342138399,1731499878259,-500.0,0.00023565,2]
[342138400,1731499878269,-192.09834496,0.00023565,2]
[342138401,1731499878279,-500.0,0.00023565,2]
[342138402,1731499878289,-500.0,0.00023565,2]
[342138403,1731499878298,-500.0,0.00023617,2]
[342138404,1731499878308,-1300.83,0.00023617,2]
[342138405,1731499878317,-500.0,0.00023617,2]
[342138406,1731499878327,-365.80841653,0.00023617,2]
[342138407,1731499878336,-784.96,0.00023632,2]
[342138408,1731499878346,-500.0,0.00023632,2]
[342138409,1731499878355,-6930.32,0.00023632,2]
[342138410,1731499878365,-1605.83,0.00023632,2]
[342138411,1731499878374,-1070.28,0.00023632,2]
[342138412,1731499878384,-1111.56,0.00023632,2]
[342138413,1731499878397,-1195.06,0.00023632,2]
[342138414,1731499878406,-154.26385933,0.00023633,2]
[342138415,1731499878416,-500.0,0.00023633,2]
[342138416,1731499878427,-514.25,0.00023633,2]
[342138417,1731499878436,-500.0,0.00023633,2]
[342138418,1731499878446,-500.0,0.00023633,2]
[342138419,1731499878456,-500.0,0.00023633,2]
[342138420,1731499878465,-500.0,0.00023633,2]
[342138421,1731499878476,-500.0,0.00023633,2]
[342138422,1731499878488,-523.42,0.00023633,2]
[342138423,1731499878498,-700.85,0.00023633,2]
[342138424,1731499878508,-500.0,0.00023633,2]
[342138425,1731499878517,-500.0,0.00023633,2]
[342138426,1731499878527,-153.95832004,0.00023633,2]
[342138427,1731499878536,-500.0,0.00023633,2]
[342138428,1731499878545,-500.0,0.00023633,2]
[342138429,1731499878554,-500.0,0.00023633,2]
[342138430,1731499878565,-2334.98,0.00023633,2]
[342138431,1731499878574,-500.0,0.00023633,2]
[342138432,1731499878583,-565.83,0.00023633,2]
[342138433,1731499878592,-590.92,0.00023633,2]
[342138434,1731499878601,-783.61,0.00023633,2]
[342138435,1731499878611,-500.0,0.00023633,2]
[342138436,1731499878621,-500.0,0.00023633,2]
[342138437,1731499878630,-3561.14,0.00023633,2]
[342138438,1731499878642,-500.0,0.00023633,2]
[342138439,1731499878651,-500.0,0.00023633,2]
[342138440,1731499878661,-1692.17,0.00023633,2]
[342138441,1731499878670,-500.0,0.00023633,2]
[342138442,1731499878679,-500.0,0.00023633,2]
[342138443,1731499878689,-1603.1,0.00023633,2]
[342138444,1731499878698,-500.0,0.00023633,2]
[342138445,1731499878708,-626.41,0.00023633,2]
[342138446,1731499878718,-564.51,0.00023633,2]
[342138447,1731499878727,-500.0,0.00023633,2]
[342138448,1731499878738,-500.0,0.00023633,2]
[342138449,1731499878748,-500.0,0.00023633,2]
[342138450,1731499878758,-546.36,0.00023633,2]
[342138451,1731499878767,-500.0,0.00023633,2]
[342138452,1731499878776,-537.55,0.00023633,2]
[342138453,1731499878785,-500.0,0.00023633,2]
[342138454,1731499878795,-500.0,0.00023633,2]
[342138455,1731499878804,-500.0,0.00023633,2]
[342138456,1731499878813,-877.96,0.00023633,2]
[342138457,1731499878822,-541.14,0.00023633,2]
[342138458,1731499878831,-500.0,0.00023633,2]
[342138459,1731499878842,-500.0,0.00023634,2]
[342138460,1731499878852,-2139.54,0.00023634,2]
[342138461,1731499878862,-1045.64,0.00023634,2]
[342138462,1731499878871,-500.0,0.00023634,2]
[342138463,1731499878881,-500.0,0.00023634,2]
[342138464,1731499878890,-768.698674,0.00023646,2]
[342138465,1731499878899,-951.449843,0.00023646,2]
[342138466,1731499879009,-950.874793,0.00023646,2]
[342138467,1731499879031,-865.784452,0.00023646,2]
[342138468,1731499879040,-301.927289,0.00023646,2]
[342138469,1731499879050,-500.0,0.00023716,2]
[342138470,1731499879059,-245.24787034,0.00023716,2]
[342138471,1731499879068,-500.0,0.00023716,2]
[342138472,1731499879078,-500.0,0.00023716,2]
[342138473,1731499879087,-500.0,0.00023716,2]
[342138474,1731499879096,-500.0,0.00023716,2]
[342138475,1731499879106,-500.0,0.00023716,2]
[342138476,1731499879115,-500.0,0.00023716,2]
[342138477,1731499879124,-500.0,0.00023716,2]
[342138478,1731499879133,-154.11703894,0.00023716,2]
[342138479,1731499879143,-500.0,0.00023716,2]
[342138480,1731499879152,-500.0,0.00023716,2]
[342138481,1731499879162,-500.0,0.00023716,2]
[342138482,1731499879172,-275.27913372,0.00023716,2]
[342138483,1731499879182,-500.0,0.00023716,2]
[342138484,1731499879192,-500.0,0.00023716,2]
[342138485,1731499879201,-500.0,0.00023716,2]
[342138486,1731499879211,-414.12649536,0.00023716,2]
[342138487,1731499879220,-545.5,0.00023716,2]
[342138488,1731499879229,-500.0,0.00023716,2]
[342138489,1731499879240,-500.0,0.00023716,2]
[342138490,1731499879250,-879.56,0.00023716,2]
[342138491,1731499879259,-524.95560637,0.00023716,2]
[342138492,1731499879269,-500.0,0.00023716,2]
[342138493,1731499879279,-500.0,0.00023716,2]
[342138494,1731499879288,-2000.0,0.0002372,2]
[342138495,1731499879298,-500.0,0.00023734,2]
[342138496,1731499879309,-500.0,0.00023734,2]
[342138497,1731499879318,-500.0,0.00023734,2]
[342138498,1731499879327,-933.01,0.00023734,2]
[342138499,1731499879336,-500.0,0.00023734,2]
[342138500,1731499879345,-365.84300104,0.00023734,2]
[342138501,1731499879354,-504.41,0.00023734,2]
[342138502,1731499879364,-607.97,0.00023734,2]
[342138503,1731499879373,-1115.11,0.00023734,2]
[342138504,1731499879382,-864.63,0.00023734,2]
[342138505,1731499879395,-500.0,0.00023734,2]
[342138506,1731499879404,-500.0,0.00023734,2]
[342138507,1731499879413,-500.0,0.00023734,2]
[342138508,1731499879422,-391.0207956,0.00023734,2]
[342138509,1731499879659,-213.55969608,0.00020826,2]
[342138510,1731499879668,-214.07694854,0.00020892,2]
[342138511,1731499879680,-285.92305146,0.00020892,2]
[342138512,1731499879690,-500.0,0.00021166,2]
[342138513,1731499879699,-500.0,0.0002144,2]
[342138514,1731499879709,-500.0,0.00021714,2]
[342138515,1731499879718,-500.0,0.00021988,2]
[342138516,1731499879728,-511.78363857,0.00022262,2]
[342138517,1731499879843,-128.24327596,0.00022262,2]
[342138518,1731499879853,-108.9792044,0.00023734,2]
[342138519,1731499879862,-442.50892513,0.00023734,2]
[342138520,1731499879871,-517.80445213,0.00023734,2]
[342138521,1731499879880,-500.0,0.00023734,2]
[342138522,1731499879889,-500.0,0.00023734,2]
[342138523,1731499879899,-182.035834,0.00023743,2]
[342138524,1731499879908,-500.0,0.00023763,2]
[342138525,1731499879917,-500.0,0.00023763,2]
[342138526,1731499879926,-500.0,0.00023763,2]
[342138527,1731499879935,-500.0,0.00023763,2]
[342138528,1731499879944,-500.0,0.00023763,2]
[342138529,1731499879953,-158.494202,0.00023836,2]
[342138530,1731499879963,-500.0,0.00023839,2]
[342138531,1731499879972,-664.1,0.00023839,2]
[342138532,1731499879981,-500.0,0.00023839,2]
[342138533,1731499879992,-500.0,0.00023839,2]
[342138534,1731499880000,-500.0,0.00023839,2]
[342138535,1731499880009,-36.40440638,0.00023839,2]
[342138536,1731499880996,1000.0,0.00027,60]
[342138541,1731499951783,500.0,0.00027,60]
[342138542,1731499965465,250.0,0.00027,60]
[342138544,1731499985425,250.0,0.00027,60]
[342138545,1731499997354,250.0,0.00027,60]
[342138546,1731500011592,2810.87628474,0.00027,60]
[342138547,1731500012573,467.03,0.00027,60]
[342138548,1731500028139,467.02,0.00027,60]
[342138552,1731500108364,1000.0,0.00027,60]
[342138557,1731500308855,151.0,0.00027,60]
[342138562,1731500524598,1000.0,0.00027,60]
[342138563,1731500534430,1000.0,0.00027,65]
[342138564,1731500543236,1000.0,0.00027,70]
[342138565,1731500550929,1000.0,0.00027,75]
[342138566,1731500641699,1333.0,0.00026137,120]
[342138568,1731500746688,158.927006,0.00013973,2]
[342138616,1731500927293,2487.35286094,0.00027,60]
[342138618,1731500929870,150.0,0.0002102,62]
[342138626,1731500960709,500.0,0.00027,60]
[342138627,1731500967294,500.0,0.00027,60]
[342138628,1731500974518,500.0,0.00027,60]
[342138630,1731500985415,500.0,0.00027,60]
[342138631,1731500992981,176.815,0.00027,60]
[342138632,1731500993746,500.0,0.00027,60]
[342138634,1731501007555,500.0,0.00027,60]
[342138635,1731501016277,500.0,0.00027,60]
[342138639,1731501031975,-578.44658695,0.00019695,2]
[342138655,1731501038225,-656.60098539,0.00019695,2]
[342138656,1731501038235,-869.82,0.00019794,2]
[342138657,1731501038244,-602.09,0.00019794,2]
[342138658,1731501038253,-500.0,0.00019795,2]
[342138659,1731501038262,-500.0,0.00019795,2]
[342138660,1731501038272,-500.0,0.00019795,2]
[342138661,1731501038281,-500.0,0.00019795,2]
[342138662,1731501038290,-500.0,0.00019795,2]
[342138663,1731501038299,-500.0,0.00019795,2]
[342138664,1731501038308,-500.0,0.00019795,2]
[342138665,1731501038317,-535.14,0.00019795,2]
[342138666,1731501038326,-500.0,0.00019795,2]
[342138667,1731501038336,-500.0,0.00019795,2]
[342138668,1731501038345,-500.0,0.00019795,2]
[342138669,1731501038354,-572.99179411,0.00019795,2]
[342138670,1731501038363,-1928.95,0.00019795,2]
[342138671,1731501038376,-500.0,0.00019795,2]
[342138672,1731501038385,-500.0,0.00019795,2]
[342138673,1731501038394,-500.0,0.00019795,2]
[342138674,1731501038405,-647.32,0.00019795,2]
[342138675,1731501038415,-500.0,0.00019795,2]
[342138676,1731501038424,-500.0,0.00019795,2]
[342138677,1731501038434,-500.0,0.00019795,2]
[342138678,1731501038443,-500.0,0.00019795,2]
[342138679,1731501038453,-500.0,0.00019795,2]
[342138680,1731501038463,-500.0,0.00019795,2]
[342138681,1731501038472,-500.0,0.00019795,2]
[342138682,1731501038482,-500.0,0.00019795,2]
[342138683,1731501038492,-500.0,0.00019795,2]
[342138684,1731501038501,-500.0,0.00019795,2]
[342138685,1731501038511,-500.0,0.00019795,2]
[342138686,1731501038520,-500.0,0.00019795,2]
[342138687,1731501038529,-500.0,0.00019795,2]
[342138688,1731501038538,-500.0,0.00019795,2]
[342138689,1731501038548,-500.0,0.00019795,2]
[342138690,1731501038557,-228.10458045,0.00019795,2]
[342138691,1731501038567,-500.0,0.00019795,2]
[342138692,1731501038576,-1264.78,0.00019795,2]
[342138693,1731501038585,-500.0,0.00019795,2]
[342138694,1731501038594,-500.0,0.00019795,2]
[342138695,1731501038604,-500.0,0.00019795,2]
[342138696,1731501038613,-500.0,0.00019795,2]
[342138697,1731501038621,-500.0,0.00019795,2]
[342138698,1731501038637,-500.0,0.00019795,2]
[342138699,1731501038647,-500.0,0.00019795,2]
[342138700,1731501038656,-500.0,0.00019795,2]
[342138701,1731501038665,-500.0,0.00019795,2]
[342138702,1731501038675,-500.0,0.00019795,2]
[342138703,1731501038686,-384.18582476,0.00019795,2]
[342138704,1731501038696,-500.0,0.00019795,2]
[342138705,1731501038706,-500.0,0.00019795,2]
[342138706,1731501038715,-3753.92,0.00019795,2]
[342138707,1731501038724,-500.0,0.00019795,2]
[342138708,1731501038733,-500.0,0.00019795,2]
[342138709,1731501038743,-500.0,0.00019795,2]
[342138710,1731501038756,-1248.06,0.00019795,2]
[342138711,1731501038765,-500.0,0.00019795,2]
[342138712,1731501038775,-609.96,0.00019795,2]
[342138713,1731501038785,-500.0,0.00019795,2]
[342138714,1731501038795,-500.0,0.00019795,2]
[342138715,1731501038804,-181.69533252,0.00019796,2]
[342138716,1731501038814,-500.0,0.00019796,2]
[342138717,1731501038826,-500.0,0.00019796,2]
[342138718,1731501038835,-500.0,0.00019796,2]
[342138719,1731501038844,-500.0,0.00019796,2]